bitfinex-derivatives/quotes_ETHF0:USTF0_20241017
["timestamp","ask_amount","ask_price","bid_price","bid_amount"]
[1729130900662,0.37905,2638.3,2638.1,1.23917]
[1729130900863,0.37905,2638.3,2638.1,4.44697]
[1729130903365,0.379,2638.7,2638.5,0.37901]
[1729130903665,0.19436472,2638.8,2638.5,3.58681]
[1729130903873,0.379,2638.7,2638.6,0.908]
[1729130904571,0.37898,2638.8,2638.6,0.908]
[1729130904874,2.12155,2639.0,2638.8,0.37897]
[1729130905069,1.24785,2639.0,2638.8,0.37897]
[1729130905274,1.24785,2639.0,2638.9,0.9314]
[1729130906271,8.26588,2639.0,2638.5,3.2078]
[1729130906472,3.60744,2638.8,2638.2,2.84497011]
[1729130906778,0.37906,2638.2,2638.1,3.2078]
[1729130909276,0.3791,2638.0,2637.7,3.22410011]
[1729130909472,3.2078,2638.3,2637.7,3.22410011]
[1729130909473,0.37911,2637.9,2637.7,3.22410011]
[1729130910073,0.8566,2638.0,2637.7,2.84497011]
[1729130910378,0.37912,2637.8,2637.7,2.84497011]
[1729130911683,0.37912,2637.8,2637.7,2.24623]
[1729130912377,0.37912,2637.8,2637.7,3.22410011]
[1729130912779,0.37912,2637.8,2637.7,2.24623]
[1729130915283,0.37912,2637.9,2637.8,0.37911]
[1729130915486,0.37912,2637.9,2637.8,3.58691]
[1729130916885,2.0104,2638.4,2637.8,15.659]
[1729130917087,2.57994831,2638.4,2638.2,0.37905]
[1729130917387,1.23512,2638.5,2638.3,0.37904]
[1729130917591,3.2078,2638.6,2638.4,1.7817]
[1729130917788,3.58681,2638.6,2638.4,2.16073]
[1729130918280,0.37902,2638.5,2638.4,1.7817]
[1729130919281,3.2078,2638.6,2638.4,1.7817]
[1729130920082,0.37902,2638.5,2638.4,1.7817]
[1729130921590,2.15572796,2638.8,2638.4,1.7817]
[1729130921892,0.37901,2638.6,2638.4,1.7817]
[1729130922789,2.15572796,2638.8,2638.4,1.7817]
[1729130922990,0.37902,2638.5,2638.4,1.7817]
[1729130923384,2.15572796,2638.8,2638.4,1.7817]
[1729130923584,0.37902,2638.6,2638.4,1.7817]
[1729130923790,0.37902,2638.5,2638.4,1.7817]
[1729130924586,0.37901,2638.6,2638.4,1.7817]
[1729130924885,0.37901,2638.6,2638.4,2.16072]
[1729130925895,0.37901,2638.6,2638.5,1.23]
[1729130926087,1.23,2638.7,2638.5,1.23]
[1729130926284,0.379,2638.6,2638.5,1.23]
[1729130926685,0.37897,2638.9,2638.5,1.23]
[1729130926881,5.0089,2639.0,2638.7,1.60898]
[1729130927191,5.0089,2639.0,2638.9,1.23]
[1729130927192,4.1229,2639.0,2638.9,1.23]
[1729130927394,0.37896,2638.9,2638.7,1.60898]
[1729130927593,5.3529,2639.0,2638.8,0.8641]
[1729130927795,5.73186,2639.0,2638.8,0.8641]
[1729130928193,5.73186,2639.0,2638.8,1.24307]
[1729130928391,5.73186,2639.0,2638.9,0.8645]
[1729130930285,5.3529,2639.0,2638.8,0.8641]
[1729130930500,1.23,2638.9,2638.8,1.24307]
[1729130930895,1.23,2638.9,2638.8,0.8641]
[1729130931196,1.60896,2638.9,2638.8,0.8641]
[1729130932087,1.60896,2638.9,2638.8,1.24307]
[1729130933798,1.60896,2638.9,2638.8,0.8641]
[1729130934491,1.60896,2638.9,2638.8,1.24307]
[1729130934699,1.60896,2638.9,2638.8,0.8641]
[1729130940197,1.23,2638.9,2638.8,4.45087]
[1729130940400,3.2078,2639.7,2638.8,5.3019]
[1729130940588,1.23,2639.3,2639.1,1.60893]
[1729130940790,1.60891,2639.3,2639.1,1.60893]
[1729130941397,1.60891,2639.3,2639.2,0.8504]
[1729130941901,0.37894,2639.1,2638.9,5.73575]
[1729130942096,1.60894,2639.1,2638.9,5.73575]
[1729130942302,1.60893,2639.1,2638.9,5.73575]
[1729130942489,2.50641,2639.3,2639.1,0.37893]
[1729130942689,0.94705,2639.9,2639.3,0.3789]
[1729130943000,0.94705,2639.9,2638.9,5.0742]
[1729130943001,1.60887,2639.5,2639.4,2.1447]
[1729130943198,1.60887,2639.5,2639.4,0.9147]
[1729130945997,1.60887,2639.5,2639.4,1.8354]
[1729130955520,0.37887,2639.5,2639.4,3.0654]
[1729130956319,0.37887,2639.5,2639.4,1.8354]
[1729130956320,1.60887,2639.5,2639.4,1.8354]
[1729130961433,1.60887,2639.5,2638.9,3.2078]
[1729130961434,0.37895,2639.0,2638.9,3.2078]
[1729130961730,1.23,2639.0,2638.7,1.23]
[1729130961930,1.24576,2638.9,2638.7,1.60898]
[1729130962154,1.24576,2638.9,2638.8,1.23]
[1729130962321,0.37896,2638.9,2638.8,1.23]
[1729130962524,1.24574,2639.1,2638.8,1.23]
[1729130962840,1.24574,2639.1,2639.0,1.23]
[1729130962841,0.37894,2639.1,2639.0,1.23]
[1729130963127,0.37893,2639.2,2639.0,1.23]
[1729130963327,0.37893,2639.2,2639.1,2.0916]
[1729130963632,0.37893,2639.2,2639.1,2.9427]
[1729130964132,0.19733051,2639.5,2639.1,6.7315]
[1729130964332,0.3789,2639.4,2639.3,1.23]
[1729130964533,0.37888,2639.5,2639.3,1.23]
[1729130964719,1.102,2639.8,2639.4,1.23]
[1729130964920,0.37887,2639.6,2639.5,1.23]
[1729130965126,0.37887,2639.6,2639.2,3.2078]
[1729130965127,0.37887,2639.6,2639.4,1.23]
[1729130965424,1.60887,2639.6,2639.4,1.23]
[1729130965623,1.60887,2639.6,2639.5,0.8988]
[1729130968335,1.79992716,2639.6,2639.5,0.8988]
[1729130969931,12.18790779,2641.1,2639.6,0.94715]
[1729130969932,1.23,2640.6,2639.6,0.94715]
[1729130970235,1.23,2640.6,2640.4,1.23]
[1729130970236,0.37873,2640.6,2640.4,1.23]
[1729130970436,0.37873,2640.6,2640.5,0.8995]
[1729130970628,0.12873,2640.6,2640.5,0.8995]
[1729130970828,0.941,2640.7,2640.5,0.8995]
[1729130971029,1.23,2640.6,2640.5,0.8995]
[1729130971332,41.902,2640.9,2640.5,2.50823]
[1729130971333,1.23,2640.8,2640.5,2.50823]
[1729130971536,1.60869,2640.8,2640.5,2.1295]
[1729130971833,0.37869,2640.8,2640.5,1.27823]
[1729130972029,3.9027,2641.0,2640.5,0.8995]
[1729130972230,0.37871,2640.7,2640.5,0.8995]
[1729130972735,3.9027,2641.0,2640.5,0.8995]
[1729130973127,3.39882989,2641.1,2640.6,2.66]
[1729130973333,0.37862,2641.3,2640.9,0.37866]
[1729130973556,3.2078,2641.8,2641.0,5.0309]
[1729130973743,40.8,2641.7,2641.3,0.37861]
[1729130974028,0.37857,2641.7,2641.3,0.37861]
[1729130974228,0.37858,2641.6,2641.2,0.37862]
[1729130974527,0.37857,2641.6,2641.2,0.37862]
[1729130974724,3.2078,2641.8,2641.1,1.29674]
[1729130974725,2.66,2641.7,2641.1,1.29674]
[1729130974924,0.37859,2641.5,2641.1,1.29674]
[1729130975431,2.66,2641.7,2641.1,0.9181]
[1729130975633,2.66,2641.7,2641.2,0.37863]
[1729130975933,3.2078,2641.8,2641.1,0.9181]
[1729130976129,0.37861,2641.4,2641.1,0.9181]
[1729130976322,0.37862,2641.3,2641.1,0.9181]
[1729130978038,0.37863,2641.2,2641.1,0.9181]
[1729130978227,0.94644,2641.6,2641.0,5.0309]
[1729130978428,0.37859,2641.5,2641.0,5.0309]
[1729130978629,0.37864,2641.2,2641.0,5.0309]
[1729130979636,0.37862,2641.3,2641.0,5.0309]
[1729130979938,2.85515701,2641.7,2641.0,5.0309]
[1729130980136,0.37861,2641.4,2641.1,3.03864]
[1729130980335,0.19515701,2641.7,2641.1,3.89374]
[1729130980635,0.37856,2641.7,2641.1,3.89374]
[1729130980834,0.3786,2641.5,2641.1,3.89374]
[1729130982032,4.49836033,2641.8,2641.1,3.89374]
[1729130982332,0.37863,2641.3,2641.1,0.8551]
[1729130982533,2.66,2641.7,2641.1,0.8551]
[1729130982733,0.37862,2641.3,2641.1,0.8551]
[1729130983332,2.66,2641.7,2641.1,0.8551]
[1729130983531,0.37863,2641.2,2641.1,0.8551]
[1729130984238,0.94645,2641.6,2641.0,5.0309]
[1729130984239,0.37864,2641.1,2641.0,5.0309]
[1729130984635,0.37864,2641.1,2641.0,4.1437]
[1729130985234,1.8377,2641.3,2641.0,4.1437]
[1729130985537,0.37864,2641.2,2641.0,4.1437]
[1729130986133,0.37864,2641.1,2641.0,0.9359]
[1729130987842,0.37866,2641.0,2640.9,3.2078]
[1729130988242,0.37867,2640.9,2640.8,0.8706]
[1729130988434,1.8377,2641.3,2640.8,0.8706]
[1729130988741,0.37865,2641.1,2640.9,3.58647]
[1729130989147,0.37866,2641.0,2640.9,3.2078]
[1729130994038,12.4464,2641.0,2640.5,3.2078]
[1729130994341,0.37876,2640.3,2640.2,1.8119]
[1729130994739,0.37875,2640.4,2640.2,5.97787]
[1729130994942,0.37875,2640.4,2640.2,2.19067]
[1729130995248,0.37876,2640.3,2640.2,1.8119]
[1729130995748,0.37876,2640.3,2640.2,5.5991]
[1729130999750,0.37876,2640.3,2640.2,1.8119]
[1729131003452,0.37876,2640.3,2640.2,2.19067]
[1729131004852,3.2078,2640.5,2640.2,1.8119]
[1729131005054,0.9378,2640.8,2640.4,2.66]
[1729131005055,4.1456,2640.8,2640.4,2.66]
[1729131005258,0.37873,2640.6,2640.5,0.37872]
[1729131005459,4.1456,2640.8,2640.4,2.66]
[1729131005661,0.37873,2640.5,2640.4,3.03874]
[1729131005848,4.1456,2640.8,2640.4,2.66]
[1729131006059,0.37872,2640.6,2640.4,3.03873]
[1729131006250,4.1456,2640.8,2640.4,2.66]
[1729131006449,0.37872,2640.6,2640.4,3.03874]
[1729131007151,4.1456,2640.8,2640.4,3.03874]
[1729131007152,0.37871,2640.7,2640.5,0.37873]
[1729131007850,4.1456,2640.8,2640.6,2.66]
[1729131008056,3.58649,2640.8,2640.6,0.37871]
[1729131008256,3.58649,2640.8,2640.7,1.7844]
[1729131009157,3.58649,2640.8,2640.7,0.8874]
[1729131009354,3.2078,2640.8,2640.3,0.897]
[1729131009661,1.784,2640.7,2640.3,0.897]
[1729131009958,0.37875,2640.4,2640.3,0.37875]
[1729131010158,1.784,2640.7,2640.2,6.7648]
[1729131010159,0.8518,2640.6,2640.2,6.7648]
[1729131010346,0.8518,2640.6,2639.2,5.35667281]
[1729131010347,0.94687,2640.4,2639.5,3.2078]
[1729131010548,0.37886,2639.6,2639.5,4.1183]
[1729131010749,0.37886,2639.6,2639.5,6.7783]
[1729131012154,0.9396,2639.8,2639.5,6.7783]
[1729131012355,0.37885,2639.7,2639.5,7.15717]
[1729131012952,0.9396,2639.8,2639.5,7.15717]
[1729131013159,0.37886,2639.6,2639.5,6.7783]
[1729131013662,0.37885,2639.7,2639.5,7.15717]
[1729131013965,0.37884,2639.7,2639.5,7.15717]
[1729131014158,0.37886,2639.6,2639.5,6.7783]
[1729131014862,6.9966,2639.6,2638.9,1.34867623]
[1729131015062,0.37895,2639.0,2638.9,0.8744]
[1729131015262,0.37899,2638.7,2638.6,2.66]
[1729131015471,0.37899,2638.7,2638.6,3.5808]
[1729131015760,4.15512,2639.2,2638.6,3.5808]
[1729131015761,0.37898,2638.8,2638.6,3.5808]
[1729131016070,3.2078,2638.9,2638.8,0.37897]
[1729131016258,3.2078,2638.9,2638.7,2.66]
[1729131016463,3.2078,2638.9,2638.8,0.37897]
[1729131016971,3.58676,2638.9,2638.7,3.03898]
[1729131017170,3.2078,2638.9,2638.8,0.37897]
[1729131017764,0.37895,2639.0,2638.8,0.37897]
[1729131017966,0.37895,2639.0,2638.7,3.5338]
[1729131017967,0.37897,2638.9,2638.7,3.91278]
[1729131018168,0.37897,2638.9,2638.8,0.37897]
[1729131018373,0.879,2639.1,2638.7,3.5338]
[1729131018563,0.37897,2638.9,2638.7,3.91278]
[1729131018772,0.37897,2638.8,2638.7,0.8738]
[1729131019077,0.379,2638.6,2638.5,3.2078]
[1729131019264,4.9946,2639.0,2638.5,5.8678]
[1729131019664,0.37896,2638.9,2638.7,3.03898]
[1729131019880,0.37896,2638.9,2638.5,3.2078]
[1729131019881,0.37899,2638.7,2638.6,0.8524]
[1729131020572,6.0946,2639.0,2638.5,3.2078]
[1729131020773,0.379,2638.6,2638.5,3.2078]
[1729131023575,0.94743,2638.9,2638.2,1.23146]
[1729131023576,0.37904,2638.4,2638.2,1.23146]
[1729131023775,0.37904,2638.4,2638.2,0.8524]
[1729131023776,0.37903,2638.4,2638.2,0.8524]
[1729131024090,0.9195,2638.5,2638.1,0.8957]
[1729131024284,0.37909,2638.0,2637.9,0.903]
[1729131024580,3.2078,2638.1,2637.7,2.11863]
[1729131024892,0.37913,2637.7,2637.6,0.9226]
[1729131025091,2.66,2638.0,2637.3,4.0995]
[1729131025280,0.37917,2637.5,2637.3,4.47868]
[1729131025480,2.79897,2637.9,2637.3,7.13868]
[1729131025481,3.65717,2637.9,2637.3,7.13868]
[1729131025687,0.37918,2637.4,2637.3,7.13868]
[1729131025875,3.65717,2637.9,2637.3,6.7595]
[1729131026082,2.16491,2637.9,2637.7,2.66]
[1729131026385,2.16491,2637.9,2637.7,3.03912]
[1729131026788,2.16491,2637.9,2637.8,0.37912]
[1729131026789,1.7858,2637.9,2637.8,0.37912]
[1729131027682,0.9276,2637.9,2637.8,0.37912]
[1729131027888,3.58688,2638.1,2637.8,0.37912]
[1729131028388,3.2078,2638.1,2637.5,2.66]
[1729131028578,3.58688,2638.1,2637.8,0.37912]
[1729131029083,3.58688,2638.1,2637.5,2.66]
[1729131029084,3.2078,2638.1,2637.6,0.9004]
[1729131029385,3.58688,2638.1,2637.8,0.37911]
[1729131029789,0.37909,2638.0,2637.8,0.37911]
[1729131030083,3.2078,2638.1,2637.6,0.9004]
[1729131030289,3.2078,2638.1,2637.8,0.37912]
[1729131030290,3.58688,2638.1,2637.8,0.37912]
[1729131030988,3.2078,2638.1,2637.9,0.3791]
[1729131031286,3.2078,2638.1,2638.0,0.9129]
[1729131031882,3.2078,2638.4,2638.2,0.37905]
[1729131032584,3.2078,2638.4,2638.1,0.9122]
[1729131032886,3.2078,2638.4,2638.2,0.37906]
[1729131033479,3.58684,2638.4,2638.1,1.29127]
[1729131033697,3.2078,2638.4,2638.2,0.37906]
[1729131033883,1.24192,2638.5,2638.2,0.37906]
[1729131034083,0.8629,2638.5,2638.3,0.37904]
[1729131034298,0.37901,2638.6,2638.3,0.37904]
[1729131034690,2.8995,2638.7,2638.3,0.37904]
[1729131034882,0.379,2638.6,2638.3,0.37904]
[1729131035485,1.7995,2638.7,2638.3,0.37904]
[1729131035685,1.7995,2638.7,2638.2,0.9288]
[1729131035980,0.37901,2638.6,2638.3,0.37904]
[1729131036178,1.7995,2638.7,2638.2,0.9288]
[1729131036384,0.37902,2638.5,2638.2,1.30785]
[1729131036589,0.37902,2638.5,2638.2,0.9288]
[1729131036793,0.37902,2638.5,2638.3,0.37905]
[1729131037182,1.7995,2638.7,2638.2,1.30786]
[1729131037387,0.37903,2638.5,2638.2,1.30785]
[1729131038596,5.0073,2638.7,2638.2,1.30785]
[1729131038597,0.37903,2638.4,2638.2,1.30785]
[1729131039290,0.37905,2638.3,2638.2,0.9288]
[1729131039490,0.37905,2638.3,2638.0,0.9129]
[1729131039491,0.37907,2638.1,2638.0,0.9129]
[1729131039792,2.66,2638.1,2637.5,3.2078]
[1729131039988,7.6342,2638.2,2637.5,3.2078]
[1729131039989,0.37915,2637.6,2637.5,3.2078]
[1729131040380,0.37914,2637.7,2637.5,3.2078]
[1729131040590,2.66,2637.9,2637.5,3.2078]
[1729131041088,0.37915,2637.7,2637.5,3.2078]
[1729131041488,3.2078,2638.0,2637.5,3.2078]
[1729131041688,0.37915,2637.6,2637.5,3.2078]
[1729131045795,0.37922,2637.1,2637.0,0.37923]
[1729131046094,0.3792,2637.3,2637.2,0.3792]
[1729131047388,3.746,2637.7,2637.0,4.4607]
[1729131047594,0.37919,2637.4,2637.2,3.58699]
[1729131047797,0.37917,2637.5,2637.4,0.37917]
[1729131047990,0.37917,2637.5,2637.4,0.37918]
[1729131048188,0.37917,2637.5,2637.2,3.2078]
[1729131048189,0.37916,2637.5,2637.3,1.24428]
[1729131048397,0.37915,2637.6,2637.4,0.37917]
[1729131048694,0.37915,2637.6,2637.5,0.9178]
[1729131048894,2.36824,2637.7,2637.5,1.29696]
[1729131049902,2.36824,2637.7,2637.5,0.9178]
[1729131050792,2.36824,2637.7,2637.5,1.29696]
[1729131050993,0.37915,2637.6,2637.5,0.9178]
[1729131051198,2.36824,2637.7,2637.5,0.9178]
[1729131051395,2.36824,2637.7,2637.5,1.29696]
[1729131051596,2.36824,2637.7,2637.5,0.9178]
[1729131051796,1.9891,2637.7,2637.5,0.9178]
[1729131052202,1.9891,2637.7,2637.5,1.29696]
[1729131052203,2.36824,2637.7,2637.5,1.29696]
[1729131052505,0.37915,2637.6,2637.5,0.9178]
[1729131053907,2.36824,2637.7,2637.5,0.9178]
[1729131054105,2.36824,2637.7,2637.5,1.29696]
[1729131054298,2.36824,2637.7,2637.5,0.9178]
[1729131054504,0.37915,2637.6,2637.5,0.9178]
[1729131054817,2.66,2638.4,2637.5,0.9178]
[1729131054818,0.37908,2638.1,2637.8,0.37912]
[1729131055009,0.37906,2638.3,2637.9,0.3791]
[1729131055310,0.37906,2638.3,2638.0,0.9187]
[1729131055600,1.7844,2638.2,2638.1,0.37907]
[1729131055806,0.8905,2638.2,2638.1,0.37907]
[1729131059008,0.8905,2638.2,2638.1,1.25587]
[1729131059201,0.37904,2638.4,2638.1,0.8768]
[1729131059399,0.37904,2638.4,2638.2,0.37906]
[1729131059601,4.46162,2638.5,2638.3,0.37904]
[1729131059806,4.46162,2638.5,2638.1,0.8768]
[1729131060105,4.46162,2638.5,2638.3,0.37904]
[1729131060307,4.46162,2638.5,2638.2,0.37905]
[1729131060497,4.0826,2638.5,2638.2,0.37905]
[1729131060701,0.37903,2638.4,2638.2,0.37906]
[1729131060906,4.46163,2638.5,2638.2,0.37906]
[1729131061204,0.37905,2638.3,2638.1,1.25587]
[1729131061409,0.37904,2638.4,2638.1,0.8768]
[1729131061609,0.37904,2638.4,2638.2,0.37906]
[1729131061906,0.37904,2638.4,2638.1,0.8768]
[1729131061907,3.2078,2638.5,2638.4,0.37903]
[1729131062210,0.37898,2638.8,2638.4,0.37903]
[1729131062399,0.18876831,2639.3,2638.9,0.37895]
[1729131062605,6.9668,2639.5,2639.0,0.8563]
[1729131062606,9.7129,2639.5,2639.0,0.8563]
[1729131062802,0.37892,2639.2,2639.0,0.8563]
[1729131063005,9.7129,2639.5,2639.0,0.8563]
[1729131063205,0.37892,2639.2,2639.0,0.8563]
[1729131063407,0.37893,2639.1,2639.0,0.8563]
[1729131063614,0.37892,2639.2,2639.0,0.8563]
[1729131063907,0.3789,2639.4,2639.1,0.37892]
[1729131064610,4.1199,2639.5,2639.0,0.8563]
[1729131064810,1.31034,2639.8,2639.0,7.67144]
[1729131065111,0.9315,2639.8,2639.1,0.8781]
[1729131065309,0.37885,2639.7,2639.1,0.8781]
[1729131065509,0.37885,2639.7,2639.2,0.9096]
[1729131065704,0.37885,2639.7,2639.4,0.37888]
[1729131065901,0.37885,2639.7,2639.2,0.9096]
[1729131066103,0.9315,2639.8,2639.2,0.9096]
[1729131066302,0.37887,2639.6,2639.3,0.3789]
[1729131067105,0.37892,2639.2,2639.0,0.8563]
[1729131067306,0.37891,2639.3,2639.0,1.23524]
[1729131067502,0.37892,2639.2,2639.0,0.8563]
[1729131067715,4.4243,2639.5,2639.0,1.23524]
[1729131067916,0.37891,2639.3,2639.0,1.23524]
[1729131068306,0.37892,2639.2,2639.0,1.23524]
[1729131068507,0.37891,2639.3,2639.0,1.23524]
[1729131068908,0.3789,2639.4,2639.1,0.37892]
[1729131070413,1.27787,2639.5,2639.3,0.3789]
[1729131070618,0.899,2639.5,2639.3,0.3789]
[1729131070828,0.899,2639.5,2639.0,6.7241]
[1729131071119,0.899,2639.5,2639.3,0.37889]
[1729131071513,0.37887,2639.6,2639.3,0.37889]
[1729131072209,0.1883948,2639.8,2639.7,0.37884]
[1729131072611,3.9763948,2639.8,2639.4,0.8938]
[1729131072811,0.37893,2639.2,2639.0,3.2078]
[1729131073022,3.2078,2639.5,2638.8,2.6753]
[1729131073215,0.37893,2639.1,2638.8,3.05427]
[1729131073411,0.37896,2638.9,2638.8,2.6753]
[1729131073713,3.2078,2639.2,2638.8,2.19867]
[1729131073714,0.37893,2639.1,2638.8,2.19867]
[1729131074014,0.37893,2639.2,2638.9,0.37895]
[1729131074410,1.5339,2639.3,2638.8,1.8197]
[1729131074713,0.3789,2639.3,2639.1,0.37893]
[1729131074918,0.37891,2639.3,2639.0,0.37893]
[1729131075826,0.88,2639.4,2639.1,0.37892]
[1729131075827,1.2589,2639.4,2639.1,0.37892]
[1729131076021,0.88,2639.4,2638.8,2.6935]
[1729131076313,0.88,2639.4,2639.1,0.37893]
[1729131076513,0.88,2639.4,2638.8,2.6935]
[1729131077019,0.3789,2639.3,2639.0,0.37894]
[1729131077221,0.37892,2639.2,2639.0,0.37894]
[1729131077420,0.37891,2639.3,2639.0,0.37894]
[1729131079920,0.37891,2639.3,2638.8,5.9013]
[1729131080115,0.37891,2639.3,2639.1,0.37893]
[1729131080515,0.88,2639.4,2638.8,5.9013]
[1729131080715,0.88,2639.4,2639.0,0.37894]
[1729131080911,0.37891,2639.3,2639.0,0.37894]
[1729131081324,0.88,2639.4,2638.8,5.9013]
[1729131081325,0.37893,2639.2,2638.8,5.9013]
[1729131081526,0.37893,2639.2,2639.0,0.37894]
[1729131081928,0.37891,2639.3,2639.0,0.37894]
[1729131082121,0.37891,2639.3,2638.8,5.9013]
[1729131082317,0.37891,2639.3,2639.0,0.37893]
[1729131082922,0.88,2639.4,2639.0,0.37893]
[1729131083233,0.37892,2639.2,2639.0,0.37893]
[1729131083726,0.37891,2639.3,2639.0,0.37893]
[1729131084526,0.88,2639.4,2639.0,0.37893]
[1729131084730,0.88,2639.4,2638.8,2.6935]
[1729131084731,0.88,2639.4,2638.8,5.9013]
[1729131084923,0.37891,2639.3,2638.8,5.9013]
[1729131085124,0.37891,2639.3,2639.1,0.37893]
[1729131087033,0.37887,2639.6,2639.3,0.37889]
[1729131087335,0.37887,2639.5,2639.4,1.759]
[1729131087631,0.37891,2639.3,2639.1,0.37892]
[1729131088027,1.3069,2639.4,2639.1,0.37892]
[1729131088725,0.3789,2639.3,2639.1,0.37892]
[1729131088931,0.928,2639.4,2639.0,0.8997]
[1729131089122,0.37892,2639.2,2639.0,0.8997]
[1729131089325,0.928,2639.4,2639.0,0.8997]
[1729131089731,0.3789,2639.3,2639.1,0.37893]
[1729131090129,0.928,2639.4,2639.0,0.8997]
[1729131090324,0.37892,2639.2,2639.1,0.37893]
[1729131090534,0.37891,2639.3,2639.1,0.37893]
[1729131091535,0.37892,2639.2,2639.1,0.37893]
[1729131091837,0.37892,2639.2,2639.0,0.8997]
[1729131091838,0.3789,2639.3,2639.0,1.27863]
[1729131092038,0.37893,2639.1,2639.0,1.27864]
[1729131092343,0.37893,2639.2,2639.0,1.27864]
[1729131092738,0.37893,2639.2,2639.1,0.37893]
[1729131092942,3.60726,2639.3,2638.9,0.8593]
[1729131093238,3.03895,2639.0,2638.9,0.8593]
[1729131093441,0.37895,2639.0,2638.9,0.8593]
[1729131094235,1.22835,2639.0,2638.9,0.8593]
[1729131097937,0.37899,2638.7,2638.6,0.9141]
[1729131098140,3.60745,2638.8,2638.2,3.58686]
[1729131098436,0.37905,2638.3,2638.2,0.8812]
[1729131098636,0.37904,2638.4,2638.2,2.16506]
[1729131098844,0.37904,2638.4,2638.3,0.37905]
[1729131099046,0.37904,2638.4,2638.2,2.16505]
[1729131099236,4.70445,2638.8,2638.2,1.786]
[1729131099437,0.37905,2638.3,2638.2,1.786]
[1729131100544,0.37904,2638.4,2638.2,1.786]
[1729131100739,0.37904,2638.4,2638.3,0.37905]
[1729131101241,3.2078,2638.6,2638.2,2.16505]
[1729131101444,0.37905,2638.3,2638.2,1.786]
[1729131103445,0.37905,2638.3,2638.2,0.8812]
[1729131103644,0.37906,2638.2,2638.1,3.2078]
[1729131103840,1.30506,2638.2,2638.1,3.2078]
[1729131104744,5.21250201,2638.6,2638.2,0.37905]
[1729131104745,0.37905,2638.3,2638.2,0.37905]
[1729131105536,0.37905,2638.3,2638.1,3.2078]
[1729131105745,0.37905,2638.3,2638.2,0.37906]
[1729131105952,3.2078,2638.6,2638.1,5.8678]
[1729131106139,3.58681,2638.6,2638.4,0.37902]
[1729131106448,3.58681,2638.6,2638.5,1.7973]
[1729131107048,0.37901,2638.6,2638.5,1.7973]
[1729131107652,5.0102,2638.7,2638.5,1.7973]
[1729131107847,5.0102,2638.7,2638.5,2.17631]
[1729131108049,5.3892,2638.7,2638.5,2.17631]
[1729131108244,5.0102,2638.7,2638.5,2.17631]
[1729131108450,5.3892,2638.7,2638.5,1.7973]
[1729131108649,5.38919,2638.7,2638.5,2.17631]
[1729131108849,5.38919,2638.7,2638.5,1.7973]
[1729131108850,0.379,2638.6,2638.5,1.7973]
[1729131109157,5.0102,2638.7,2638.5,2.1763]
[1729131109354,5.3892,2638.7,2638.5,1.7973]
[1729131109657,5.0102,2638.7,2638.5,1.7973]
[1729131109846,5.3892,2638.7,2638.5,1.7973]
[1729131110042,5.3892,2638.7,2638.5,2.17631]
[1729131110456,5.0102,2638.7,2638.5,2.17631]
[1729131110656,5.0102,2638.7,2638.5,1.7973]
[1729131110850,5.3892,2638.7,2638.5,1.7973]
[1729131111048,0.379,2638.6,2638.5,1.7973]
[1729131111444,3.2078,2638.7,2638.6,0.379]
[1729131111646,3.2078,2638.7,2638.5,1.7973]
[1729131111956,3.58679,2638.7,2638.5,2.17631]
[1729131112358,3.2078,2638.7,2638.6,0.379]
[1729131112558,3.2078,2638.7,2638.5,1.7973]
[1729131112857,3.2078,2638.7,2638.6,0.379]
[1729131113358,0.37898,2638.8,2638.6,0.379]
[1729131113756,0.379,2638.7,2638.5,2.17632]
[1729131114050,0.37898,2638.8,2638.6,0.379]
[1729131114661,0.37898,2638.8,2638.5,2.17631]
[1729131114958,0.37898,2638.8,2638.6,0.379]
[1729131115353,0.37898,2638.8,2638.5,2.17631]
[1729131115548,0.37898,2638.8,2638.6,0.379]
[1729131116244,0.37898,2638.8,2638.5,2.17631]
[1729131116449,3.94854241,2639.0,2638.6,0.379]
[1729131116648,3.2078,2639.1,2638.5,1.7973]
[1729131116850,3.58674,2639.1,2638.9,0.37896]
[1729131117050,3.58674,2639.1,2638.6,0.96972623]
[1729131117051,3.2078,2639.1,2639.0,1.24945]
[1729131117256,0.37891,2639.3,2639.0,0.8705]
[1729131117447,0.37891,2639.3,2639.1,1.26323]
[1729131117652,4.3048,2639.4,2639.2,0.37891]
[1729131117653,3.58669,2639.4,2639.2,0.37891]
[1729131118151,3.2078,2639.4,2639.2,0.37891]
[1729131118363,3.2078,2639.4,2639.1,1.779]
[1729131118556,1.8266,2639.6,2639.3,0.37889]
[1729131118748,1.8266,2639.6,2639.4,0.9223]
[1729131118952,0.37887,2639.5,2639.4,0.9223]
[1729131120056,1.8266,2639.6,2639.4,0.9223]
[1729131120057,2.20547,2639.6,2639.4,0.9223]
[1729131120256,1.27086,2639.6,2639.4,1.30118]
[1729131120453,0.892,2639.6,2639.4,1.30118]
[1729131120654,0.892,2639.6,2639.4,0.9223]
[1729131120856,0.37887,2639.5,2639.4,0.9223]
[1729131121055,0.892,2639.6,2639.4,1.30119]
[1729131121455,1.27086,2639.6,2639.4,1.30119]
[1729131121656,0.37887,2639.5,2639.4,0.9223]
[1729131122053,0.892,2639.6,2639.4,0.9223]